Workbook

Sheet Introduction
A1: WA Environmental Offsets calculator
A2: PLEASE ENABLE MACROS FOR THIS SPREADSHEET
C5: Produced by:
C6: The Department of Water and Environmental Regulation (DWER) in consultation with stakeholder working groups
C7: Purpose:
C8: Use the WA Envirionmental Offsets calculator in conjunction with the Environmental offsets metric: Quantifying environmental offsets in Western Australia guideline. Together, they form a supplement to section 4 of the WA Environmental Offsets Guidelines and provide information to help decision-makers, government officers, industry and the community to quantify environmental offsets.
C9: Data currency:
C10: The correct application of the WA Environmental Offsets Calculator relies on access to current datasets (such as vegetation extent and land tenure).
C14: Process for using the WA Environmental Offsets Calculator
C15: Step | D15: Worksheet | E15: Component
C16: Step 1: Determining conservation significance | D16: Step1_ConservationSignificance | E16: Conservation significance determination
E17: Combined area/feature
C18: Step 2: Calculating significant residual impact | D18: Step2_SignificantResidualImpact | E18: Part A: Significant impact calculation
E19: Separate area or feature calculations
E20: Part B: Rehabilitation credit calculation
E21: Separate area or feature calculations
E22: Part C: Significant residual impact calculation
E23: Separate area or feature calculations
C24: Step 3: Calculating offsets | D24: Step3_Offsets | E24: Offsets calculation
E25: Separate area or feature calculations
C26: Rationale for scores used in the Offsets Calculator | D26: Rationale | E26: All

Sheet Step1_ConservationSignificance
A1: WA Environmental Offsets Calculator | N1: Calculations
A3: Step 1: Determining conservation significance
F4: Key: | N4: Type | O4: Species (flora/fauna) | P4: Ecological Community | Q4: Wetland/watercourse | R4: Vegetation/Habitat | S4: Conservation Area | T4: Value | U4: Score | V4: Type
G5: Data to be entered | N5: Species (flora/fauna) | O5: Rare/threatened species - critically endangered | P5: Threatened ecological community - critically endangered | Q5: Vegetation associated with a wetland or watercourse for which an offset is required | R5: Terrestrial native vegetation complex - <30% extent remaining in the bioregion | S5: Crown reserve established under the Conservation and Land Management Act 1984 and/or the Land Administration Act 1997 for the purpose of conservation | T5: Rare/threatened species - critically endangered | U5: 0.068 | V5: Area
G6: Drop-down selection | N6: Ecological community | O6: Rare/threatened species - endangered | P6: Threatened ecological community - endangered | Q6: A category or type of wetland or watercourse for which an offset is required | R6: Terrestrial native vegetation complex - <10% extent remaining in a constrained area | S6: Conservation covenant | T6: Rare/threatened Species - endangered | U6: 0.012 | V6: Feature
G7: Automatically-generated scores | N7: Wetland/watercourse | O7: Rare/threatened Species - vulnerable | P7: Threatened ecological community - vulnerable | R7: Habitat supporting migratory species (e.g. listed in the JAMBA, CAMBA or RoKAMBA) | S7: Bush Forever site | T7: Rare/threatened species - vulnerable | U7: 0.002
B8: Area / feature (Impact site) | G8: (Or, if appropriate, manual data entry permitted) | N8: Vegetation/habitat | O8: Priority species | P8: Priority ecological community | R8: Vegetation/Habitat representative of high biodiversity | S8: Other conservation area | T8: Priority species | U8: 0.001
B9: Conservation significance determination for the environmental value impacted | N9: Conservation area | O9: Other species | P9: Other ecological community | T9: Other species | U9: 0.001
B10: Conservation significance | C10: Description | D10: Northern Quoll and Pilbara Olive Python Habitat | T10: Threatened ecological community - critically endangered | U10: 0.068
C11: Type of environmental value | D11: Species (flora/fauna) | T11: Threatened ecological community - endangered | U11: 0.012
C12: Conservation significance of environmental value | D12: Rare/threatened species - endangered | T12: Threatened ecological community - vulnerable | U12: 0.002
C13: Conservation significance score | D13: =IF(D12="",0,IF(D12>"",VLOOKUP(D12,T5:U24,2,FALSE))) -> 0.012 | T13: Priority ecological community | U13: 0.001
T14: Other ecological community | U14: 0.001
T15: Vegetation associated with a wetland or watercourse for which an offset is required | U15: 0.001
T16: A category or type of wetland or watercourse for which an offset is required | U16: 0.001
B17: Please select area or feature for the calculations | D17: Area | T17: Terrestrial native vegetation complex - <30% extent remaining in the bioregion | U17: 0.001
T18: Terrestrial native vegetation complex - <10% extent remaining in a constrained area | U18: 0.001
T19: Habitat supporting migratory species (e.g. listed in the JAMBA, CAMBA or RoKAMBA) | U19: 0.001
T20: Vegetation/Habitat representative of high biodiversity | U20: 0.001
T21: Crown reserve established under the Conservation and Land Management Act 1984 and/or the Land Administration Act 1997 for the purpose of conservation | U21: A conservation significance score does not apply in this case; an offset ratio may be appropriate (step 3)
T22: Conservation covenant | U22: A conservation significance score does not apply in this case; an offset ratio may be appropriate (step 3)
T23: Bush Forever site | U23: A conservation significance score does not apply in this case; an offset ratio may be appropriate (step 3)
T24: Other conservation area | U24: A conservation significance score does not apply in this case; an offset ratio may be appropriate (step 3)

Sheet Step2_SignificantResidualImpact
A1: WA Environmental Offsets Calculator | N1: Calculations
A3: Step 2: Calculating significant residual impact
F4: Key:
G5: Data to be entered
G6: Drop-down selection
G7: Automatically-generated scores
A9: Environmental value (step 1) | C9: =Step1_ConservationSignificance!$D$10 -> Northern Quoll and Pilbara Olive Python Habitat
A12: (SCROLL DOWN FOR FEATURE CALCULATION)
A13: Area (impact site)
A14: Part A: Significant impact calculation Area
A15: Significant impact | B15: Description | C15: Quantum of impact
B16: Clearing of NQ/POP habitat | C16: Significant impact (hectares) | D16: 67.53 | E16: =IF(Step1_ConservationSignificance!D12="Crown reserve established under the Conservation and Land Management Act 1984 and/or the Land Administration Act 1997 for the purpose of conservation","NOTE: Quality score must be entered as '10' for a Crown reserve established for the purpose of conservation","") -> 
C17: Quality (scale) | D17: 7
C18: Total quantum of impact | D18: =D16*(D17/10) -> 47.271
A20: Part B: Rehabilitation credit calculation Area (onsite) | H20: Part C: Significant residual impact calculation Area | N20: Part B: Rehabilitation Credit Calculation Area (On-site)
A21: Rehabilitation Credit | B21: Description | C21: Proposed rehabilitation (area in hectares) | E21: Time until ecological benefit (years) | H21: Significant residual impact | I21: Total quantum of impact | J21: =D18 -> 47.271 | O21: Quality | Q21: Conservation significance score | R21: =IF(Step1_ConservationSignificance!$D$13=0%,Step1_ConservationSignificance!$D$13,IF(Step1_ConservationSignificance!$D$13=0.1%,Step1_ConservationSignificance!$D$13,IF(Step1_ConservationSignificance!$D$13=0.2%,Step1_ConservationSignificance!$D$13,IF(Step1_ConservationSignificance!$D$13=1.2%,Step1_ConservationSignificance!$D$13,IF(Step1_ConservationSignificance!$D$13=6.8%,Step1_ConservationSignificance!$D$13,IF(Step1_ConservationSignificance!$D$13="A conservation significance score does not apply in this case; an offset ratio may be appropriate (Step 3)",0,0)))))) -> 0.012
C22: Current quality of rehabilitation site (scale) | E22: Confidence in rehabilitation result (%) | I22: Rehabilitation credit | J22: =F23 -> 0 | N22: Raw gain | O22: =(D24-D22)-(D23-D22) -> 0
C23: Future quality WITHOUT rehabilitation (scale) | E23: Rehabilitation credit | F23: =(O24/10)*D21 -> 0 | I23: Significant residual impact | J23: =J21-J22 -> 47.271 | N23: Adjusted gain | O23: =O22*F22 -> 0
C24: Future quality WITH rehabilitation (scale) | N24: Net present value (adjusted) | O24: =O23/(1+R21)^F21 -> 0
A26: Feature (impact site)
A27: Part A: Significant impact calculation Feature
A28: Significant impact | B28: Description | C28: Quantum of impact
C29: Type of feature | D29: Number
C31: Total quantum of impact | D31: =D30 -> 0
A33: Part B: Rehabilitation credit calculation Feature (onsite) | H33: Part C: Significant residual impact calculation Feature | N33: Part B: Rehabilitation Credit Calculation Feature (On-site)
A34: Rehabilitation credit | B34: Description | C34: Start number (of type of feature) | E34: Time until ecological benefit (years) | H34: Significant residual impact | I34: Total quantum of impact | J34: =D31 -> 0 | O34: Number | Q34: Conservation significance score | R34: =IF(Step1_ConservationSignificance!$D$13=0%,Step1_ConservationSignificance!$D$13,IF(Step1_ConservationSignificance!$D$13=0.1%,Step1_ConservationSignificance!$D$13,IF(Step1_ConservationSignificance!$D$13=0.2%,Step1_ConservationSignificance!$D$13,IF(Step1_ConservationSignificance!$D$13=1.2%,Step1_ConservationSignificance!$D$13,IF(Step1_ConservationSignificance!$D$13=6.8%,Step1_ConservationSignificance!$D$13,IF(Step1_ConservationSignificance!$D$13="A conservation significance score does not apply in this case; an offset ratio may be appropriate (Step 3)",0,0)))))) -> 0.012
C35: Future number WITHOUT rehabilitation | E35: Confidence in rehabilitation result (%) | I35: Rehabilitation credit | J35: =F36 -> 0 | N35: Raw gain | O35: =(D36-D34)-(D35-D34) -> 0
C36: Future number WITH rehabilitation | E36: Rehabilitation credit | F36: =O36/(1+R34)^F34 -> 0 | I36: Significant residual impact | J36: =J34-J35 -> 0 | N36: Adjusted gain | O36: =O35*F35 -> 0

Sheet Step3_Offsets
A1: WA Environmental Offsets Calculator | N1: Calculations
A3: Step 3: Calculating offsets
G4: Key:
H5: Data to be entered
H6: Drop-down selection
H7: Automatically-generated scores
B9: Environmental value (step 1) | D9: =Step1_ConservationSignificance!$D$10 -> Northern Quoll and Pilbara Olive Python Habitat | E9: Significant impact (step 2, part A) | G9: =Step2_SignificantResidualImpact!$D$16+Step2_SignificantResidualImpact!$D$31 -> 67.53
E10: Rehabilitation credit (step 2, part B) | G10: =Step2_SignificantResidualImpact!$F$23+Step2_SignificantResidualImpact!$F$36 -> 0
E11: Significant residual impact (step 2, part C) | G11: =Step2_SignificantResidualImpact!$J$23+Step2_SignificantResidualImpact!$J$36 -> 47.271
B12: (SCROLL DOWN FOR FEATURE CALCULATION)
B13: Area (offset site)
B14: Offset calculation Area | N14: Offsets Calculation - Land Acquisition / On-ground Management Area
B15: Offsets calculation | C15: Description | D15: Proposed offset (area in hectares) | E15: 225 | F15: Duration of offset implementation (maximum 20 years) | G15: 20 | H15: Offset value | I15: =IF(S15>0%,((P20/10)*O16)+((E18/10)*O20),E15) -> 48.02371542 | O15: Risk | P15: Quality | R15: Conservation significance score | S15: =IF(Step1_ConservationSignificance!$D$13=0%,Step1_ConservationSignificance!$D$13,IF(Step1_ConservationSignificance!$D$13=0.1%,Step1_ConservationSignificance!$D$13,IF(Step1_ConservationSignificance!$D$13=0.2%,Step1_ConservationSignificance!$D$13,IF(Step1_ConservationSignificance!$D$13=1.2%,Step1_ConservationSignificance!$D$13,IF(Step1_ConservationSignificance!$D$13=6.8%,Step1_ConservationSignificance!$D$13,IF(Step1_ConservationSignificance!$D$13="A conservation significance score does not apply in this case; an offset ratio may be appropriate (Step 3)",0,0)))))) -> 0.012
C16: Land management to address weed and grazing impacts | D16: Current quality of offset site (scale) | E16: 4 | F16: Time until offset site secured (years) | G16: 1 | I16: =I15/Step2_SignificantResidualImpact!J23 -> 1.015923408 | N16: Future area without offset (adjusted) | O16: =E15*(1-G17) -> 202.5 | R16: Conservation Area? | S16: =IF(Step1_ConservationSignificance!D11=Step1_ConservationSignificance!S4,"Yes","No") -> No
D17: Future quality WITHOUT offset (scale) | E17: 3 | F17: Risk of future loss WITHOUT offset (%) | G17: 0.1 | H17: Offset value Conservation area (applied to step 2, part A) | I17: 3 | N17: Future area with offset (adjusted) | O17: =E15*(1-(G18*G15+(G17*(20-G15)))/20) -> 202.5 | R17: Offset for significant residual impact | S17: Offset for Conservation Area
D18: Future quality WITH offset (scale) | E18: 6 | F18: Risk of future loss WITH offset (%) | G18: 0.1 | I18: =E15/(I17*Step2_SignificantResidualImpact!D16) -> 1.110617503 | N18: Raw gain | O18: =O17-O16 -> 0 | P18: =(E18-E16)-(E17-E16) -> 3 | Q18: Offset adequate? (Y=1; N=0; N/A=0) | R18: =IF(I15<Step2_SignificantResidualImpact!J23,0,IF(I15>=Step2_SignificantResidualImpact!J23,1)) -> 1 | S18: =IF(E15<(I17*Step2_SignificantResidualImpact!$D$16),0,IF(E15>=(I17*Step2_SignificantResidualImpact!$D$16),1,IF(S16="No",1))) -> 1 | T18: =IF(R19>10,"The spatial offset is more than ten times the spatial impact - this offset design may be unfeasible; reconsideration recommended",IF(S19>10,"The spatial offset is more than ten times the spatial impact - this offset design may be unfeasible; reconsideration recommended",IF(R19<1,"The spatial offset is less than the spatial impact - this offset design may be inconsistent with the WA Environmental Offsets Policy",IF(S19<1,"The spatial offset is less than the spatial impact - this offset design may be inconsistent with the WA Environmental Offsets Policy","")))) -> 
D19: Time until ecological benefit (years) | E19: 1 | N19: Adjusted gain | P19: =P18*E20 -> 2.4 | Q19: Ratio | R19: =E15/Step2_SignificantResidualImpact!D16 -> 3.33185251 | S19: =E15/Step2_SignificantResidualImpact!D16 -> 3.33185251
D20: Confidence in offset result (%) | E20: 0.8 | H20: OFFSET ADEQUATE? | I20: =IF((R18+S18)<=1,"NO",IF((R18+S18)>1,"YES")) -> YES | N20: Net present value (adjusted) | O20: =O18/(1+S15)^G16 -> 0 | P20: =P19/(1+S15)^E19 -> 2.371541502 | Q20: Ratio offset:impact | R20: =ROUND(E15/Step2_SignificantResidualImpact!D16,2)&":"&1 -> 3.33:1 | S20: =ROUND(E15/Step2_SignificantResidualImpact!D16,2)&":"&1 -> 3.33:1
B22: Feature (offset site)
B23: Offset calculation Feature | N23: Offsets Calculation Feature
B24: Offsets calculation | C24: Description | D24: Start number (of type of feature) | F24: Time until ecological benefit (years) | H24: Offset value | I24: =O26/(1+S24)^G24 -> 0 | O24: Number | R24: Conservation significance score | S24: =IF(Step1_ConservationSignificance!$D$13=0%,Step1_ConservationSignificance!$D$13,IF(Step1_ConservationSignificance!$D$13=0.1%,Step1_ConservationSignificance!$D$13,IF(Step1_ConservationSignificance!$D$13=0.2%,Step1_ConservationSignificance!$D$13,IF(Step1_ConservationSignificance!$D$13=1.2%,Step1_ConservationSignificance!$D$13,IF(Step1_ConservationSignificance!$D$13=6.8%,Step1_ConservationSignificance!$D$13,IF(Step1_ConservationSignificance!$D$13="A conservation significance score does not apply in this case; an offset ratio may be appropriate (Step 3)",0,0)))))) -> 0.012
D25: Future number WITHOUT offset | F25: Confidence in offset result (%) | I25: =I24/Step2_SignificantResidualImpact!J36 ->  | N25: Raw gain | O25: =(E26-E24)-(E25-E24) -> 0
D26: Future number WITH offset | N26: Adjusted gain | O26: =O25*G25 -> 0
H27: OFFSET ADEQUATE? | I27: =IF(I24<Step2_SignificantResidualImpact!J36,"NO",IF(I24>=Step2_SignificantResidualImpact!J36,"YES")) -> YES

Sheet Rationale
A1: WA Environmental Offsets Calculator
A3: Rationale for scores used in the offsets calculator
A8: Environmental value to be offset
A9: Calculation | B9: Score (Area) | C9: Score (Feature) | D9: Rationale
A10: Conservation significance
A11: Description | B11: =Step1_ConservationSignificance!D10 -> Northern Quoll and Pilbara Olive Python Habitat | C11: =Step1_ConservationSignificance!D10 -> Northern Quoll and Pilbara Olive Python Habitat | D11: Refer to Offset Strategy
A12: Type of environmental value | B12: =Step1_ConservationSignificance!D11 -> Species (flora/fauna) | C12: =Step1_ConservationSignificance!D11 -> Species (flora/fauna)
A13: Conservation significance of environmental value | B13: =Step1_ConservationSignificance!D12 -> Rare/threatened species - endangered | C13: =Step1_ConservationSignificance!D12 -> Rare/threatened species - endangered
A14: Landscape-level value impacted | B14: yes/no | C14: yes/no
A15: Significant impact
A16: Description | B16: =Step2_SignificantResidualImpact!B16 -> Clearing of NQ/POP habitat | C16: =Step2_SignificantResidualImpact!B29 -> 0
A17: Significant impact (hectares) / Type of feature | B17: =Step2_SignificantResidualImpact!D16 -> 67.53 | C17: =Step2_SignificantResidualImpact!C30 -> 0
A18: Quality (scale) / Number | B18: =Step2_SignificantResidualImpact!D17 -> 7 | C18: =Step2_SignificantResidualImpact!D30 -> 0
A19: Rehabilitation credit
A20: Description | B20: =Step2_SignificantResidualImpact!B22 -> 0 | C20: =Step2_SignificantResidualImpact!B35 -> 0
A21: Proposed rehabilitation (area in hectares) | B21: =Step2_SignificantResidualImpact!D21 -> 0 | C21: N/A
A22: Current quality of rehabilitation site / Start number (of type of feature) | B22: =Step2_SignificantResidualImpact!D22 -> 0 | C22: =Step2_SignificantResidualImpact!D34 -> 0
A23: Future quality WITHOUT rehabilitation (scale) / Future number WITHOUT rehabilitation | B23: =Step2_SignificantResidualImpact!D23 -> 0 | C23: =Step2_SignificantResidualImpact!D35 -> 0
A24: Future quality WITH rehabilitation (scale) / Future number WITH rehabilitation | B24: =Step2_SignificantResidualImpact!D24 -> 0 | C24: =Step2_SignificantResidualImpact!D36 -> 0
A25: Time until ecological benefit (years) | B25: =Step2_SignificantResidualImpact!F21 -> 0 | C25: =Step2_SignificantResidualImpact!F34 -> 0
A26: Confidence in rehabilitation result (%) | B26: =Step2_SignificantResidualImpact!F22 -> 0 | C26: =Step2_SignificantResidualImpact!F35 -> 0
A27: Offset
A28: Description | B28: =Step3_Offsets!C16 -> Land management to address weed and grazing impacts | C28: =Step3_Offsets!C25 -> 0
A29: Proposed offset (area in hectares) | B29: =Step3_Offsets!E15 -> 225 | C29: N/A
A30: Current quality of offset site / Start number (of type of feature) | B30: =Step3_Offsets!E16 -> 4 | C30: =Step3_Offsets!E24 -> 0
A31: Future quality WITHOUT offset (scale) / Future number WITHOUT offset | B31: =Step3_Offsets!E17 -> 3 | C31: =Step3_Offsets!E25 -> 0
A32: Future quality WITH offset (scale) / Future number WITH offset | B32: =Step3_Offsets!E18 -> 6 | C32: =Step3_Offsets!E26 -> 0
A33: Time until ecological benefit (years) | B33: =Step3_Offsets!E19 -> 1 | C33: =Step3_Offsets!G24 -> 0
A34: Confidence in offset result (%) | B34: =Step3_Offsets!E20 -> 0.8 | C34: =Step3_Offsets!G25 -> 0
A35: Duration of offset implementation (maximum 20 years) | B35: =Step3_Offsets!G15 -> 20 | C35: N/A
A36: Time until offset site secured (years) | B36: =Step3_Offsets!G16 -> 1 | C36: N/A
A37: Risk of future loss WITHOUT offset (%) | B37: =Step3_Offsets!G17 -> 0.1 | C37: N/A
A38: Risk of future loss WITH offset (%) | B38: =Step3_Offsets!G18 -> 0.1 | C38: N/A
A39: Offset ratio (Conservation area only) | B39: =IF(Step3_Offsets!S16="No","N/A",Step3_Offsets!I17) -> N/A | C39: N/A
A40: Landscape level values of offset? | B40: N/A | C40: N/A
